bitfinex/quotes_ETHUSD_20220308
["timestamp","ask_amount","ask_price","bid_price","bid_amount"]
[1646712567443,1.178,2563.9,2563.7,7.7997]
[1646712568643,1.18341673,2563.9,2563.7,7.7997]
[1646712569442,1.178,2563.9,2563.7,7.7997]
[1646712569844,1.18351724,2563.9,2563.7,7.7997]
[1646712570696,1.178,2563.9,2563.7,7.7997]
[1646712571095,1.18351724,2563.9,2563.7,7.7997]
[1646712571701,1.178,2563.8,2563.7,7.7997]
[1646712572702,0.00551724,2563.9,2563.7,7.7997]
[1646712573105,2.30216626,2564.2,2563.7,7.7997]
[1646712573303,0.00520825,2563.9,2563.8,0.97531]
[1646712574335,2.30216626,2564.2,2563.8,0.97531]
[1646712574537,0.00520819,2564.0,2563.8,0.97531]
[1646712575639,2.30216626,2564.2,2563.7,8.77502]
[1646712575837,0.00520813,2564.0,2563.7,8.77502]
[1646712576838,2.30216626,2564.2,2563.7,8.77502]
[1646712577041,0.00508416,2564.0,2563.7,8.77502]
[1646712577882,3.00702597,2564.2,2563.7,8.77502]
[1646712578284,0.00508416,2564.0,2563.7,8.77502]
[1646712578683,0.00508416,2564.0,2563.7,7.7997]
[1646712579083,1.178,2564.2,2563.7,7.7997]
[1646712579484,0.00508416,2564.0,2563.7,7.7997]
[1646712579685,1.18308416,2564.0,2563.7,7.7997]
[1646712580286,1.178,2564.0,2563.7,7.7997]
[1646712580685,1.18309377,2564.0,2563.7,7.7997]
[1646712581535,1.178,2564.0,2563.7,7.7997]
[1646712581935,1.18309377,2564.0,2563.7,7.7997]
[1646712582835,1.178,2564.0,2563.7,7.7997]
[1646712583036,1.18309377,2564.0,2563.7,7.7997]
[1646712583636,1.18309377,2564.0,2563.1,0.195]
[1646712584037,1.178,2564.0,2563.2,0.97553]
[1646712584237,1.1830928,2564.0,2563.3,0.195]
[1646712584442,1.1830928,2564.0,2563.2,0.97553]
[1646712584837,1.178,2563.5,2563.2,0.97553]
[1646712585101,0.75413118,2563.5,2563.2,0.97553]
[1646712585288,0.75413118,2563.5,2563.3,0.27397919]
[1646712586289,3.5,2563.4,2563.3,0.27397919]
[1646712586492,2.05787376,2563.4,2562.9,0.27397919]
[1646712586792,0.75413118,2563.4,2563.0,0.2790736]
[1646712586991,0.75413118,2563.4,2563.1,0.27397919]
[1646712587194,0.75413118,2563.4,2563.2,0.27397919]
[1646712587392,0.75413118,2563.4,2563.3,0.27397919]
[1646712587793,2.06263228,2563.4,2563.0,0.27907358]
[1646712587993,0.75922473,2563.4,2563.1,0.27397919]
[1646712588194,0.75922473,2563.4,2563.2,0.27397919]
[1646712588392,0.75922473,2563.4,2563.3,0.27397919]
[1646712588596,2.06251302,2563.4,2563.3,0.27397919]
[1646712588833,2.05741947,2563.4,2563.3,0.27397919]
[1646712589034,2.05741947,2563.4,2563.0,0.27907362]
[1646712589035,2.06251297,2563.4,2563.0,0.27907362]
[1646712589233,0.75922468,2563.4,2563.1,1.24953919]
[1646712589436,0.75922468,2563.4,2563.2,0.27397919]
[1646712590033,0.75413118,2563.4,2563.2,0.27397919]
[1646712590234,0.75922468,2563.4,2563.2,0.27397919]
[1646712591141,0.75413118,2563.4,2563.2,0.27397919]
[1646712591540,0.75922469,2563.4,2563.2,0.27397919]
[1646712592340,0.75413118,2563.4,2563.2,0.27397919]
[1646712592597,5.5570753,2563.3,2563.2,0.27397919]
[1646712592785,5.9495753,2563.3,2563.0,0.00509444]
[1646712592985,5.9495753,2563.3,2563.1,0.27583754]
[1646712592986,2.0570753,2563.2,2563.1,0.27583754]
[1646712593788,2.0570753,2563.2,2562.5,0.27583754]
[1646712593789,0.75413118,2562.8,2562.5,0.27583754]
[1646712593985,0.75413118,2562.8,2562.6,0.26598453]
[1646712594186,0.75413118,2562.8,2562.7,0.26598453]
[1646712594385,0.75413118,2562.8,2562.4,0.26598453]
[1646712594987,0.75413118,2562.8,2562.6,0.00509461]
[1646712595186,0.75413118,2562.8,2562.7,0.26598453]
[1646712595587,0.75413118,2562.8,2562.6,0.00509461]
[1646712595588,5.56541321,2562.8,2562.6,0.00509461]
[1646712595788,5.56541321,2562.7,2562.6,0.00509461]
[1646712595989,2.45791321,2562.7,2562.1,1.6971728]
[1646712596188,0.75413118,2562.2,2562.1,1.6971728]
[1646712596444,0.75413118,2562.2,2562.1,1.95304429]
[1646712597443,0.75413118,2562.2,2562.1,1.6971728]
[1646712601790,5.25413118,2562.1,2562.0,0.00551861]
[1646712601992,1.14663118,2561.7,2561.1,7.35]
[1646712602191,1.14663118,2561.7,2561.2,0.22414233]
[1646712602392,0.75413118,2561.7,2561.2,0.22414233]
[1646712602592,0.75413118,2561.7,2561.2,3.72414233]
[1646712602792,0.75413118,2561.7,2561.3,0.22414233]
[1646712602993,0.75413118,2561.7,2561.3,1.20028233]
[1646712603195,0.75413118,2561.7,2561.4,0.22414233]
[1646712604633,0.75413118,2561.7,2561.5,0.22414233]
[1646712604834,0.75413118,2561.7,2561.4,0.00520849]
[1646712605035,0.45140907,2561.7,2561.4,0.00520849]
[1646712605634,0.45140907,2561.7,2561.5,0.21832299]
[1646712605835,0.45140907,2561.7,2561.1,7.35]
[1646712606035,0.84390907,2561.7,2561.4,0.00522382]
[1646712606236,3.45140907,2561.5,2561.4,0.00522382]
[1646712606438,5.296178,2561.5,2561.4,0.00522382]
[1646712606640,6.596178,2561.5,2561.4,0.00522382]
[1646712606846,0.45140907,2560.9,2560.0,10.85]
[1646712607040,0.45140907,2560.9,2560.1,3.25632471]
[1646712607240,0.45140907,2560.9,2560.3,1.15609101]
[1646712607439,0.45140907,2560.9,2560.4,2.56070162]
[1646712607687,0.45140907,2560.9,2560.5,0.21870162]
[1646712608692,0.45140907,2560.9,2560.6,0.21870162]
[1646712608888,0.45140907,2560.9,2560.7,0.21870162]
[1646712609089,0.45140907,2560.9,2560.3,1.95294]
[1646712609289,0.45140907,2560.9,2560.4,0.21821084]
[1646712610089,0.45140907,2560.9,2560.5,0.97653]
[1646712610289,0.45140907,2560.9,2560.6,0.21821084]
[1646712611940,0.45140907,2560.9,2560.6,3.71821084]
[1646712612139,0.45140907,2560.9,2560.7,0.21821084]
[1646712612337,0.45140907,2560.9,2560.8,0.97637]
[1646712612536,0.45140907,2560.9,2560.8,4.69458084]
[1646712612937,0.45140907,2560.9,2560.8,0.21821084]
[1646712613136,0.45140907,2560.9,2560.7,0.21821084]
[1646712615487,0.45140907,2560.9,2560.7,0.22357996]
[1646712615788,0.45140907,2560.9,2560.8,0.21821084]
[1646712616493,0.45140907,2560.9,2560.8,0.20802464]
[1646712616692,0.45140907,2560.9,2560.7,0.00548119]
[1646712617793,1.61056129,2560.8,2560.1,0.1952]
[1646712617993,1.61056129,2560.8,2560.7,0.00548125]
[1646712619040,1.61056129,2560.8,2560.6,0.00548131]
[1646712620139,0.45140907,2560.8,2560.2,0.97664]
[1646712620439,0.45140907,2560.8,2560.6,0.00518646]
[1646712621237,0.45140907,2560.8,2560.3,0.1952]
[1646712621440,0.84390907,2560.8,2560.4,0.20206764]
[1646712621841,0.45140907,2560.8,2560.6,0.00518646]
[1646712622443,0.45140907,2560.8,2560.4,0.97657]
[1646712622685,0.45140907,2560.8,2560.6,0.00518646]
[1646712622887,0.3905,2562.1,2560.7,0.01203138]
[1646712623087,0.3905,2562.1,2561.3,2.35407995]
[1646712623285,0.3905,2562.1,2561.3,2.74657995]
[1646712623486,0.3905,2562.1,2561.5,3.31809]
[1646712623886,0.3905,2562.1,2561.6,0.976]
[1646712624086,0.3905,2562.1,2561.6,0.98120888]
[1646712624285,0.3905,2562.1,2561.6,3.71570888]
[1646712624487,3.09206715,2563.4,2561.8,14.6545]
[1646712624488,0.00096,2562.8,2561.8,14.6545]
[1646712624690,1.16442176,2563.0,2562.0,2.342]
[1646712624885,1.16442176,2563.0,2562.1,0.195]
[1646712624886,1.16346176,2563.0,2562.1,0.195]
[1646712625285,1.16346176,2563.0,2562.2,0.00520821]
[1646712625687,1.77642216,2562.9,2562.2,0.00520821]
[1646712625886,0.3925,2562.9,2562.2,0.00520821]
[1646712626086,0.6925,2562.9,2561.7,3.5]
[1646712626337,0.3925,2562.7,2561.6,1.95198]
[1646712626542,0.39346,2562.7,2562.4,0.00520793]
[1646712626843,0.00398639,2562.2,2561.7,1.95211]
[1646712627040,0.00398639,2562.2,2561.7,0.97609]
[1646712628042,0.00398639,2562.2,2561.7,1.95207]
[1646712628445,0.00398639,2562.2,2561.8,2.342]
[1646712628642,0.00398639,2562.2,2561.8,18.1545]
[1646712628844,0.195,2563.5,2562.4,0.3925]
[1646712629042,1.4245711,2563.4,2562.9,0.97563]
[1646712629242,2.6657,2563.9,2562.9,3.31763]
[1646712629441,1.81706446,2563.8,2562.9,0.97563]
[1646712629644,1.1569466,2563.5,2562.9,0.97563]
[1646712629841,1.42456446,2563.4,2562.9,0.97563]
[1646712630102,1.42456446,2563.4,2562.6,1.95126]
[1646712630292,1.81706446,2563.4,2562.5,0.04599765]
[1646712630493,1.81706446,2563.3,2562.5,0.04599765]
[1646712630693,1.42456446,2563.2,2562.5,0.04599765]
[1646712630893,1.10022925,2562.7,2562.5,0.04599765]
[1646712631495,1.10022925,2562.7,2562.3,0.00566989]
[1646712632295,1.10022925,2562.7,2562.1,2.342]
[1646712632695,1.10022925,2562.7,2562.1,2.34127149]
[1646712633097,1.10022925,2562.7,2561.9,2.342]
[1646712633295,0.00669702,2562.1,2561.9,2.342]
[1646712635139,0.00669702,2562.1,2562.0,0.13422877]
[1646712636139,0.00669702,2562.1,2561.9,2.3476698]
[1646712636545,0.00669702,2562.1,2562.0,0.13430833]
[1646712639003,1.10022925,2562.7,2562.0,0.13430833]
[1646712639205,1.85335368,2562.6,2562.0,0.13430833]
[1646712639404,1.10022925,2562.7,2561.8,1.7926]
[1646712639405,0.3925,2562.4,2561.8,1.7926]
[1646712639602,0.3925,2562.4,2561.6,0.13819997]
[1646712639603,0.3925,2562.4,2561.9,0.11514593]
[1646712639804,0.3925,2562.4,2561.9,0.0056698]
[1646712640404,0.3925,2562.6,2561.9,0.0056698]
[1646712640705,0.3925,2562.4,2561.6,1.11432997]
[1646712640905,1.46157541,2562.3,2562.0,0.00566968]
[1646712641106,1.85407541,2562.3,2562.0,0.00566968]
[1646712641334,1.46157541,2562.2,2562.0,0.00566968]
[1646712641739,1.46157541,2562.2,2561.6,0.13819997]
[1646712642037,1.46157541,2562.2,2562.0,0.00566974]
[1646712642238,1.46157541,2562.1,2562.0,0.00566974]
[1646712642639,1.46157541,2562.2,2562.0,0.00566974]
[1646712642839,1.46157541,2562.1,2562.0,0.00566974]
[1646712643040,1.02121681,2562.1,2561.6,1.11428997]
[1646712643241,1.02121681,2562.1,2561.9,0.0056698]
[1646712644243,1.02121681,2562.1,2561.6,1.11432997]
[1646712644443,1.02121681,2562.1,2561.9,0.00534338]
[1646712645495,1.02121681,2562.1,2561.6,2.09047997]
[1646712645695,1.02121681,2562.1,2561.9,0.00534338]
[1646712646604,1.02121681,2562.1,2561.2,2.21574]
[1646712646799,1.02121681,2562.1,2561.9,0.00534338]
[1646712646800,1.47206254,2562.0,2561.9,0.00534338]
[1646712647000,1.47206254,2562.0,2561.2,2.21574]
[1646712647001,0.00462149,2561.8,2561.2,2.21574]
[1646712647200,0.00462149,2561.8,2561.3,0.10573732]
[1646712648403,0.00462149,2561.8,2561.3,6.92398732]
[1646712648602,0.00462149,2561.8,2561.4,2.64273732]
[1646712648841,0.00462149,2561.8,2561.5,0.10573732]
[1646712649044,0.00462149,2561.8,2561.6,0.10573732]
[1646712649243,0.00462149,2561.8,2561.7,0.10573732]
[1646712649445,0.00462149,2561.8,2561.7,2.44773732]
[1646712650846,0.00462149,2561.8,2561.7,0.10573732]
[1646712655792,0.00462149,2561.8,2561.6,0.00567015]
[1646712656196,0.00462149,2561.8,2561.2,2.537]
[1646712656443,1.00589652,2561.6,2561.3,0.07955295]
[1646712656645,0.00462149,2561.8,2561.3,0.07955295]
[1646712657646,0.00462149,2561.8,2561.4,0.00504623]
[1646712657848,0.9812107,2561.8,2561.5,0.07955295]
[1646712658848,0.9812107,2561.8,2561.5,0.00504612]
[1646712659848,0.9812107,2561.8,2561.2,3.51334]
[1646712660086,0.9812107,2561.8,2561.5,0.00507383]
[1646712660989,0.9812107,2561.8,2561.4,0.195]
[1646712661191,1.58243057,2561.7,2561.4,0.195]
[1646712662095,1.58243057,2561.7,2561.3,0.9763]
[1646712662295,0.00462149,2561.8,2561.4,0.195]
[1646712663942,0.00462149,2561.8,2561.5,0.0053918]
[1646712664342,1.58361119,2561.7,2561.5,0.0053918]
[1646712664840,1.88361119,2561.7,2561.3,3.3183]
[1646712665041,1.58361119,2561.6,2561.5,0.00550939]
[1646712665843,1.58361119,2561.6,2561.3,3.3183]
[1646712666147,1.58361119,2561.6,2561.4,0.0055095]
[1646712666949,0.3,2561.7,2561.4,0.0055095]
[1646712667145,0.3,2561.7,2561.3,2.342]
[1646712667346,0.00462149,2561.8,2561.4,0.00550956]
[1646712667587,0.00462149,2561.8,2561.3,2.29750956]
[1646712667786,0.9594812,2562.0,2561.3,2.29750956]
[1646712667988,0.25462149,2562.0,2561.3,2.29750956]
[1646712668487,1.6006676,2562.1,2561.3,2.29750956]
[1646712668687,2.6006676,2562.1,2561.3,2.29750956]
[1646712668888,1.6006676,2562.1,2561.3,2.29750956]
[1646712669089,2.6006676,2562.1,2561.3,2.29750956]
[1646712669286,1.9006676,2562.1,2561.3,2.29750956]
[1646712669487,2.9006676,2562.1,2561.3,2.29750956]
[1646712669893,1.9006676,2562.1,2561.3,2.29750956]
[1646712670090,2.9006676,2562.1,2561.3,2.29750956]
[1646712670289,1.9006676,2562.1,2561.3,2.29750956]
[1646712670491,2.9006676,2562.1,2561.3,2.29750956]
[1646712670889,1.9006676,2562.1,2561.3,2.29750956]
[1646712671091,2.9006676,2562.1,2561.3,2.29750956]
[1646712671350,1.9006676,2562.1,2561.3,2.29750956]
[1646712671542,2.9006676,2562.1,2561.3,2.29750956]
[1646712671746,1.19580789,2562.1,2561.3,2.29750956]
[1646712671943,0.89580789,2562.1,2561.3,2.29750956]
[1646712672144,0.89580789,2562.1,2561.3,3.27945774]
[1646712672645,5.49093285,2562.3,2561.3,3.27945774]
[1646712672846,4.78607314,2562.3,2561.3,7.17195774]
[1646712673045,4.68040723,2562.3,2561.4,0.195]
[1646712673245,4.68040723,2562.3,2561.6,3.27360956]
[1646712673446,0.59757324,2562.3,2561.6,6.77360956]
[1646712673847,0.94579511,2562.2,2561.6,6.77360956]
[1646712674248,0.94579511,2562.2,2561.6,0.9761]
[1646712674445,0.94579511,2562.2,2561.5,1.95219]
[1646712674846,0.94579511,2562.2,2561.5,4.29419]
[1646712675087,1.24579511,2562.2,2561.5,4.29419]
[1646712675889,1.24579511,2562.2,2561.5,1.95219]
[1646712676903,1.63829511,2562.2,2561.5,1.95219]
[1646712677193,1.63829511,2562.2,2561.6,0.195]
[1646712677394,1.63829511,2562.2,2561.5,1.95219]
[1646712678092,2.34315482,2562.2,2561.3,0.00548128]
[1646712679140,2.34315482,2562.2,2561.2,1.95251]
[1646712679444,2.34315482,2562.2,2561.3,0.00548118]
[1646712680040,1.63829511,2562.2,2561.3,0.00548118]
[1646712680241,1.63829511,2562.2,2561.2,1.95251]
[1646712680640,1.63829511,2562.2,2561.3,0.00535254]
[1646712681043,2.34315482,2562.2,2561.3,0.00535254]
[1646712681240,3.61955142,2562.2,2561.3,0.00535254]
[1646712681446,0.70485971,2562.1,2561.3,0.00535254]
[1646712681644,2.91469171,2562.2,2561.1,0.195]
[1646712681645,0.70485971,2562.0,2561.1,0.195]
[1646712681845,1.00485971,2562.0,2561.3,0.00535254]
[1646712682049,0.3,2562.0,2561.3,0.00535254]
[1646712682445,0.70485971,2562.1,2561.3,0.00535254]
[1646712682446,1.00485971,2562.1,2561.3,0.00535254]
[1646712682689,0.70485971,2562.0,2561.1,1.17137]
[1646712682890,0.70485971,2561.7,2561.1,0.195]
[1646712683089,9.805,2561.0,2560.9,16.02176]
[1646712683288,9.805,2561.0,2560.9,14.0691]
[1646712683488,9.805,2561.0,2560.9,12.3125]
[1646712684490,9.805,2561.0,2560.9,14.2651]
[1646712685296,9.805,2561.0,2560.9,13.8726]
[1646712685497,10.3951,2561.0,2560.9,13.8726]
[1646712686346,10.97203433,2561.0,2560.9,13.8726]
[1646712688744,10.97203433,2561.0,2560.9,15.1726]
[1646712688946,10.97203433,2561.0,2560.9,15.5651]
[1646712689444,10.97203433,2561.0,2560.9,15.2651]
[1646712689848,10.97203433,2561.0,2560.9,14.8726]
[1646712690097,10.97203433,2561.0,2560.9,12.92]
[1646712690296,10.97203433,2561.0,2560.9,11.92]
[1646712691096,10.97203433,2561.0,2560.6,0.3925]
[1646712691298,10.97203433,2561.0,2560.2,0.40086575]
[1646712691299,1.59128394,2560.9,2560.2,0.40086575]
[1646712691509,1.59128394,2560.9,2559.9,0.20391909]
[1646712691510,0.4963,2560.8,2559.9,0.20391909]
[1646712691705,4.0901,2560.0,2559.1,1.2394]
[1646712692001,0.3925,2560.3,2559.2,1.50499519]
[1646712692002,0.5901,2559.7,2559.2,1.50499519]
[1646712692219,0.5901,2559.7,2559.0,0.9771]
[1646712692403,0.5901,2559.7,2559.1,1.95388]
[1646712692599,0.5901,2559.7,2559.0,0.97709]
[1646712692600,0.5901,2559.7,2559.2,0.01286189]
[1646712693000,0.5901,2560.1,2559.0,12.89709]
[1646712693200,4.6668,2560.2,2559.3,1.95377]
[1646712693201,0.5901,2559.9,2559.3,1.95377]
[1646712693400,0.5901,2559.7,2559.0,0.97709]
[1646712693857,0.5901,2559.8,2559.0,0.97709]
[1646712694042,3.5,2559.9,2559.0,0.97709]
[1646712694043,0.5901,2559.6,2559.0,0.97709]
[1646712694245,0.5901,2559.6,2559.1,0.97705]
[1646712694443,0.5901,2559.6,2559.1,12.89705]
[1646712694645,0.5901,2559.6,2559.1,0.97705]
[1646712694845,0.5901,2559.9,2559.1,0.97705]
[1646712695048,0.5901,2559.9,2559.2,0.00565341]
[1646712695847,0.5901,2559.9,2559.3,1.95373]
[1646712696045,0.5901,2559.9,2559.4,1.95369]
[1646712696448,0.5901,2560.1,2559.4,1.95934317]
[1646712696647,0.5901,2560.1,2559.4,1.90934317]
[1646712696849,0.5901,2560.1,2559.6,1.95354]
[1646712697049,0.5901,2560.1,2559.6,14.85027]
[1646712697449,0.5901,2560.1,2559.6,16.15592293]
[1646712697895,0.5901,2560.1,2559.6,4.23592293]
[1646712698395,0.5901,2560.1,2559.8,0.97668]
[1646712698596,0.5901,2560.1,2559.8,1.95339]
[1646712698996,0.5901,2560.1,2559.8,2.25339]
[1646712699196,0.5901,2560.1,2559.8,1.95339]
[1646712699398,0.5901,2560.1,2559.8,2.25339]
[1646712699799,0.5901,2560.1,2559.8,2.25887313]
[1646712700201,0.5901,2560.1,2559.8,0.98219313]
[1646712700497,0.5901,2560.1,2559.8,0.00548313]
[1646712700698,0.5901,2560.1,2559.6,3.93027]
[1646712700699,0.9826,2560.1,2559.4,3.90739]
[1646712701005,0.5901,2560.0,2559.8,0.00548313]
[1646712701948,0.5901,2560.4,2559.6,0.97684]
[1646712702149,0.5901,2559.9,2559.8,0.98226318]
[1646712703147,0.5901,2559.9,2559.8,0.97678]
[1646712704750,1.17536866,2559.9,2559.8,0.97678]
[1646712707094,1.17536866,2559.9,2559.7,0.20064633]
[1646712707496,1.17536866,2559.9,2559.7,0.00534633]
[1646712707898,1.17536866,2559.9,2559.5,1.95352]
[1646712708296,1.17536866,2559.9,2559.7,0.00534639]
[1646712708855,0.5901,2559.7,2559.2,0.1953]
[1646712709045,3.8925,2559.8,2558.9,1.2059]
[1646712709046,0.5901,2559.5,2558.9,1.2059]
[1646712709243,3.5,2559.6,2558.8,19.27]
[1646712709244,0.5901,2559.6,2558.8,19.27]
[1646712709443,0.5901,2559.3,2558.8,19.27]
[1646712710145,0.5901,2559.3,2558.9,0.1953]
[1646712710345,0.5901,2559.3,2558.8,21.41942]
[1646712710746,0.5901,2559.3,2558.9,0.00517125]
[1646712711451,0.5901,2559.2,2558.9,0.98231125]
[1646712711651,0.5901,2559.2,2559.0,0.97703]
[1646712711851,0.5901,2559.2,2559.0,0.9822012]
[1646712712592,0.5901,2559.1,2559.0,0.9822012]
[1646712712792,0.5901,2559.1,2559.0,1.17233]
[1646712713199,0.5901,2559.1,2559.0,1.1775012]
[1646712713997,0.5901,2559.1,2559.0,2.14929]
[1646712714398,0.5901,2559.1,2559.0,14.06929]
[1646712714798,0.5901,2559.1,2559.0,15.06929]
[1646712715400,0.6834061,2559.1,2559.0,15.06929]
[1646712716853,0.6834061,2559.1,2559.0,3.14929]
[1646712717054,0.6834061,2559.1,2559.0,2.14929]
[1646712717258,0.6834061,2559.1,2559.0,3.14929]
[1646712717554,0.6834061,2559.1,2559.0,2.14929]
[1646712717760,0.6834061,2559.1,2558.8,7.35]
[1646712717956,0.6834061,2559.1,2558.9,0.0050668]
[1646712718363,0.6834061,2559.1,2558.8,7.3050668]
[1646712718556,0.6834061,2559.1,2558.7,0.13819997]
[1646712720093,1.0759061,2559.1,2558.6,0.97726]
[1646712721500,1.0759061,2559.1,2558.7,0.00565399]
[1646712722400,1.0759061,2559.1,2558.6,1.95451]
[1646712722602,1.0759061,2559.1,2558.8,0.00565393]
[1646712722801,0.0901,2558.9,2558.8,0.00565393]
[1646712723404,3.5901,2558.9,2558.8,0.00565393]
[1646712723600,0.4826,2558.9,2558.1,0.1953]
[1646712723854,0.0901,2558.3,2558.1,0.1953]
[1646712724344,0.0901,2558.3,2558.0,0.1953]
[1646712725145,0.0901,2558.3,2558.0,0.20095481]
[1646712725546,0.0901,2558.3,2558.0,0.19455081]
[1646712725949,0.0901,2558.3,2558.0,0.188896]
[1646712726246,0.0901,2558.3,2558.0,0.18796525]
[1646712726650,0.69100298,2558.3,2558.0,0.18796525]
[1646712727251,0.69100298,2558.3,2558.0,0.1824801]
[1646712727692,0.69100298,2558.3,2558.0,0.18796525]
[1646712728497,0.69100298,2558.3,2558.0,0.1824801]
[1646712728695,0.69100298,2558.3,2558.0,0.18796525]
[1646712729096,0.69100298,2558.3,2558.0,1.96030515]
[1646712729695,0.69100298,2558.3,2557.9,9.343043]
[1646712729895,0.69100298,2558.3,2558.1,0.9774]
[1646712730096,0.69100298,2558.3,2558.1,2.93214]
[1646712731098,0.69100298,2558.3,2558.1,2.93748611]
[1646712731953,0.69100298,2558.3,2558.1,2.93214]
[1646712732355,0.69100298,2558.3,2558.1,2.93748611]
[1646712733358,0.69100298,2558.3,2558.1,2.18749423]
[1646712734054,0.69100298,2558.3,2558.1,0.98275423]
[1646712734254,0.69100298,2558.3,2558.1,0.00535423]
[1646712734458,1.08350298,2558.3,2557.4,7.35]
[1646712734656,1.08350298,2558.3,2557.7,0.02142014]
[1646712734657,0.01606268,2558.0,2557.7,0.02142014]
[1646712735094,0.0901,2557.8,2557.7,0.02142014]
[1646712735696,0.0901,2557.8,2557.4,7.35]
[1646712737104,0.4826,2557.8,2557.5,0.00535663]
[1646712737905,0.4826,2557.8,2557.4,7.35]
[1646712738304,0.4826,2557.8,2557.5,0.00535657]
[1646712739357,0.0901,2557.8,2557.5,0.00535657]
[1646712740359,0.4826,2557.8,2557.5,0.00535657]
[1646712740956,0.0901,2557.6,2557.5,0.00535657]
[1646712742359,0.0901,2557.6,2557.4,7.35]
[1646712743392,2.7401,2557.0,2556.9,0.3905]
[1646712747046,2.7401,2557.0,2556.9,1.36839]
[1646712747747,2.7401,2557.0,2556.9,4.86839]
[1646712748250,2.7401,2557.0,2556.9,2.36839]
[1646712748647,2.7401,2557.0,2556.9,1.36839]
[1646712757354,0.0901,2556.9,2556.6,4.81161892]
[1646712757598,0.0901,2556.9,2556.7,0.3]
[1646712757798,0.0901,2556.9,2556.8,0.00507115]
[1646712758000,0.0901,2556.9,2556.8,2.93812115]
[1646712758800,0.0901,2556.9,2556.7,0.9778]
[1646712759002,0.0901,2556.9,2556.7,0.005079]
[1646712759402,0.67055211,2556.9,2556.7,0.983089]
[1646712759604,1.65292632,2556.9,2556.7,0.983089]
[1646712759801,1.65292632,2556.9,2556.7,0.97801]
[1646712760204,1.65292632,2556.9,2556.7,0.98308896]
[1646712760403,1.65292632,2556.9,2556.7,0.00507896]
[1646712760806,0.67055211,2556.9,2556.7,0.00507896]
[1646712761005,0.67055211,2556.9,2556.5,9.30598]
[1646712761451,0.67055211,2556.9,2556.7,0.00507896]
[1646712761854,3.5901,2556.8,2556.7,7.896e-05]
[1646712762052,3.5901,2556.8,2556.3,0.02031888]
[1646712762053,0.48192104,2556.6,2556.3,0.02031888]
[1646712762257,0.48192104,2556.6,2555.8,0.57880944]
[1646712762453,0.4812,2556.4,2555.8,0.57880944]
[1646712762652,0.0901,2556.4,2555.8,0.57880944]
[1646712762853,0.0901,2556.4,2556.0,13.06712435]
[1646712763053,0.0901,2556.4,2556.1,0.97802]
[1646712766200,0.0901,2556.4,2556.1,0.00565437]
[1646712766605,0.0901,2556.4,2556.1,0.98386437]
[1646712766802,0.0901,2556.4,2556.1,0.00565437]
[1646712767203,0.0901,2556.4,2555.8,4.67805039]
[1646712767406,0.0901,2556.4,2556.1,0.00565437]
[1646712767703,0.0901,2556.4,2556.1,2.94000437]
[1646712768305,0.0901,2556.4,2556.1,2.93435]
[1646712768504,0.0901,2556.4,2556.1,2.94000437]
[1646712768705,0.0901,2556.4,2556.2,0.97806]
[1646712769348,0.0901,2556.4,2556.2,13.28916]
[1646712769546,0.0901,2556.4,2556.2,14.38196]
[1646712769747,0.0901,2556.4,2556.2,15.38761432]
[1646712770346,0.00072104,2556.6,2556.5,11.92]
[1646712770547,0.00072104,2556.6,2556.5,13.28887]
[1646712770747,0.00072104,2556.6,2556.5,14.59087]
[1646712770950,0.00072104,2556.6,2556.5,14.19977]
[1646712771752,0.00072104,2556.6,2556.5,2.27777]
[1646712772152,0.00072104,2556.6,2556.5,1.27777]
[1646712774501,0.00072104,2556.6,2556.2,1.07968]
[1646712774701,0.00072104,2556.6,2556.4,0.00533923]
[1646712775300,0.00072104,2556.6,2556.5,0.97777]
[1646712779755,0.00072104,2556.6,2556.5,0.92777]
[1646712782806,0.00072104,2556.6,2556.5,1.52482461]
[1646712783607,0.00072104,2556.6,2556.5,1.82482461]
[1646712785955,1.178,2556.9,2556.5,1.82482461]
[1646712786154,1.178,2556.9,2556.7,1.95566]
[1646712786354,1.178,2556.9,2556.8,3.9111955]
[1646712787599,1.178,2556.9,2556.8,8.7111955]
[1646712787801,1.178,2556.9,2556.8,17.1311955]
[1646712788902,2.65,2557.0,2556.9,15.42]
[1646712788903,3.828,2557.0,2556.9,15.42]
[1646712789301,3.828,2557.0,2556.9,25.4239]
[1646712789501,1.178,2557.8,2557.2,12.3111]
[1646712789701,1.178,2557.6,2557.2,14.58854]
[1646712789901,1.178,2557.5,2557.2,14.58854]
[1646712790504,1.178,2557.5,2557.3,2.93231]
[1646712790701,1.178,2557.5,2557.3,6.86489]
[1646712790906,1.178,2557.8,2557.4,0.97758]
[1646712791103,1.178,2557.6,2557.4,1.95525]
[1646712791359,2.77163025,2557.5,2557.4,1.95525]
[1646712792353,1.178,2557.5,2557.4,1.95525]
[1646712793356,1.19406268,2558.0,2557.6,1.95498]
[1646712793558,1.178,2557.8,2557.6,1.95498]
[1646712794354,0.01606268,2558.0,2557.7,0.97747]
[1646712794555,1.178,2557.8,2557.7,1.95495]
[1646712794756,1.178,2557.8,2557.7,3.9096775]
[1646712795398,0.01606268,2558.0,2557.7,3.9096775]
[1646712795599,1.178,2557.9,2557.7,3.9096775]
[1646712795800,1.0159,2557.9,2557.8,15.42]
[1646712796205,1.0159,2557.9,2557.8,16.72]
[1646712796403,0.01606268,2558.0,2557.8,16.72]
[1646712796604,0.01606268,2558.0,2557.9,14.85187]
[1646712796804,0.01606268,2558.0,2557.9,15.85187]
[1646712797405,1.0159,2558.1,2557.9,15.85187]
[1646712797606,1.0159,2558.1,2558.0,11.92]
[1646712797806,1.0159,2558.1,2558.0,14.19728]
[1646712799262,1.0159,2558.1,2558.0,2.27728]
[1646712799463,0.59488672,2558.6,2558.0,2.27728]
[1646712799464,1.0159,2558.5,2558.0,2.27728]
[1646712799662,0.59488672,2558.6,2558.0,0.97728]
[1646712799663,1.0159,2558.3,2558.0,0.97728]
[1646712800065,0.98598672,2558.6,2557.9,2.93187]
[1646712800066,1.0159,2558.1,2557.9,2.93187]
[1646712800265,2.60920401,2558.0,2557.9,2.93187]
[1646712800468,2.60920401,2558.0,2557.4,0.97766]
[1646712800663,1.0159,2557.8,2557.4,0.97766]
[1646712800865,1.0159,2557.7,2557.5,1.95532]
[1646712801265,2.2489487,2557.7,2557.5,1.95532]
[1646712803504,1.0159,2557.6,2557.5,1.95532]